fUSD/lending_fUSD_20240420
["ID","MTS","AMOUNT","RATE_DAILY","PERIOD"]
[323059782,1713621166087,-599.69,0.00019726,2]
[323059783,1713621166097,-1031.32,0.00019726,2]
[323059784,1713621166106,-789.55,0.00019726,2]
[323059785,1713621166116,-1204.32,0.00019726,2]
[323059786,1713621166126,-500.0,0.00019726,2]
[323059787,1713621166136,-201.47989723,0.00019726,2]
[323059788,1713621166145,-702.73,0.00019726,2]
[323059789,1713621166154,-516.52,0.00019726,2]
[323059790,1713621166165,-3310.74,0.00019726,2]
[323059791,1713621166174,-500.0,0.00019726,2]
[323059792,1713621166184,-2883.58,0.00019726,2]
[323059793,1713621166193,-1816.08,0.00019726,2]
[323059794,1713621166203,-585.36,0.00019726,2]
[323059795,1713621166213,-855.47,0.00019726,2]
[323059796,1713621166222,-534.99,0.00019726,2]
[323059797,1713621166232,-25055.79,0.00019726,2]
[323059798,1713621166242,-1302.76,0.00019726,2]
[323059799,1713621166252,-1460.91,0.00019726,2]
[323059800,1713621166262,-11346.84,0.00019726,2]
[323059801,1713621166272,-2836.68,0.00019726,2]
[323059802,1713621166282,-604.68,0.00019726,2]
[323059803,1713621166293,-2104.73,0.00019726,2]
[323059804,1713621166305,-276.16891335,0.00019726,2]
[323059805,1713621166314,-2073.42,0.00019726,2]
[323059806,1713621166323,-1526.62,0.00019726,2]
[323059807,1713621166333,-500.0,0.00019726,2]
[323059808,1713621166344,-1538.77,0.00019726,2]
[323059809,1713621166354,-17543.18,0.00019726,2]
[323059810,1713621166363,-500.0,0.00019726,2]
[323059811,1713621166373,-500.0,0.00019726,2]
[323059812,1713621166384,-4660.49,0.00019726,2]
[323059813,1713621166394,-2699.08,0.00019726,2]
[323059814,1713621166404,-1179.82,0.00019726,2]
[323059815,1713621166413,-581.88,0.00019726,2]
[323059816,1713621166423,-2419.34,0.00019726,2]
[323059817,1713621166433,-500.0,0.00019726,2]
[323059818,1713621166443,-1491.91,0.00019726,2]
[323059819,1713621166453,-1046.7,0.00019726,2]
[323059820,1713621166463,-929.27,0.00019726,2]
[323059821,1713621166473,-1397.79,0.00019726,2]
[323059822,1713621166482,-2207.26,0.00019726,2]
[323059823,1713621166491,-983.83,0.00019726,2]
[323059824,1713621166500,-5291.84,0.00019726,2]
[323059825,1713621166509,-584.35,0.00019726,2]
[323059826,1713621166519,-689.72,0.00019726,2]
[323059827,1713621166528,-2126.15,0.00019726,2]
[323059828,1713621166537,-3579.93,0.00019726,2]
[323059829,1713621166547,-873.88,0.00019726,2]
[323059830,1713621166557,-2569.48,0.00019726,2]
[323059831,1713621166567,-820.73,0.00019726,2]
[323059832,1713621166577,-5218.13,0.00019726,2]
[323059833,1713621166586,-496.99543173,0.00019726,2]
[323059834,1713621166596,-987.0,0.00019726,2]
[323059835,1713621166607,-20114.69,0.00019726,2]
[323059836,1713621166710,-893.57,0.00019726,2]
[323059837,1713621166720,-500.0,0.00019726,2]
[323059838,1713621166730,-637.43,0.00019726,2]
[323059839,1713621166740,-1731.18,0.00019726,2]
[323059840,1713621166749,-1285.12,0.00019726,2]
[323059841,1713621166759,-1109.59,0.00019726,2]
[323059842,1713621166769,-1096.27,0.00019726,2]
[323059843,1713621166779,-500.0,0.00019726,2]
[323059844,1713621166789,-725.21,0.00019726,2]
[323059845,1713621166799,-1089.81,0.00019726,2]
[323059846,1713621166812,-508.71,0.00019726,2]
[323059847,1713621166822,-500.0,0.00019726,2]
[323059848,1713621166832,-500.0,0.00019726,2]
[323059849,1713621166842,-1517.58,0.00019726,2]
[323059850,1713621166851,-520.08,0.00019726,2]
[323059851,1713621166861,-1955.1,0.00019726,2]
[323059852,1713621166871,-500.0,0.00019726,2]
[323059853,1713621166880,-967.39,0.00019726,2]
[323059854,1713621166890,-620.62,0.00019726,2]
[323059855,1713621166900,-1531.19,0.00019726,2]
[323059856,1713621166909,-747.89,0.00019726,2]
[323059857,1713621166919,-7480.38,0.00019726,2]
[323059858,1713621166929,-1894.49,0.00019726,2]
[323059859,1713621166938,-873.58,0.00019726,2]
[323059860,1713621166948,-500.0,0.00019726,2]
[323059861,1713621166958,-1993.22,0.00019726,2]
[323059862,1713621166969,-880.45,0.00019726,2]
[323059863,1713621166978,-369.46356885,0.00019726,2]
[323059864,1713621166988,-1085.31,0.00019726,2]
[323059865,1713621166997,-500.0,0.00019726,2]
[323059866,1713621167007,-2753.72,0.00019726,2]
[323059867,1713621167017,-500.0,0.00019726,2]
[323059868,1713621167026,-1162.41,0.00019726,2]
[323059869,1713621167036,-2731.21,0.00019726,2]
[323059870,1713621167046,-1954.97,0.00019726,2]
[323059871,1713621167057,-2627.79,0.00019726,2]
[323059872,1713621167067,-794.92,0.00019726,2]
[323059873,1713621167076,-1013.89,0.00019726,2]
[323059874,1713621167085,-1131.55,0.00019726,2]
[323059875,1713621167094,-622.04,0.00019726,2]
[323059876,1713621167103,-1320.88,0.00019726,2]
[323059877,1713621167112,-1413.35,0.00019726,2]
[323059878,1713621167121,-500.0,0.00019726,2]
[323059879,1713621167131,-500.0,0.00019726,2]
[323059880,1713621167140,-2346.4,0.00019726,2]
[323059881,1713621167149,-563.88,0.00019726,2]
[323059882,1713621167159,-803.26,0.00019726,2]
[323059883,1713621167168,-2292.01,0.00019726,2]
[323059884,1713621167177,-500.0,0.00019726,2]
[323059885,1713621167187,-831.92,0.00019726,2]
[323059886,1713621167198,-1128.04,0.00019726,2]
[323059887,1713621167207,-5369.64,0.00019726,2]
[323059888,1713621167217,-3431.1,0.00019726,2]
[323059889,1713621167227,-680.01,0.00019726,2]
[323059890,1713621167236,-2676.86,0.00019726,2]
[323059891,1713621167246,-546.08,0.00019726,2]
[323059892,1713621167256,-727.28,0.00019726,2]
[323059893,1713621167266,-2216.75,0.00019726,2]
[323059894,1713621167275,-823.84,0.00019726,2]
[323059895,1713621167284,-1588.82,0.00019726,2]
[323059896,1713621167294,-841.25,0.00019726,2]
[323059897,1713621167307,-1811.35,0.00019726,2]
[323059898,1713621167316,-866.08,0.00019726,2]
[323059899,1713621167325,-906.35,0.00019726,2]
[323059900,1713621167335,-1171.0,0.00019726,2]
[323059901,1713621167344,-3500.27,0.00019726,2]
[323059902,1713621167353,-506.37,0.00019726,2]
[323059903,1713621167365,-1349.52,0.00019726,2]
[323059904,1713621167376,-2730.13,0.00019726,2]
[323059905,1713621167386,-4084.13,0.00019726,2]
[323059906,1713621167396,-1215.96,0.00019726,2]
[323059907,1713621167406,-599.23171592,0.00019726,2]
[323059908,1713621167415,-570.63,0.00019726,2]
[323059909,1713621167424,-565.70925092,0.00019726,2]
[323059910,1713621167434,-1517.62,0.00019726,2]
[323059911,1713621167443,-2492.62,0.00019726,2]
[323059912,1713621167452,-1694.66,0.00019726,2]
[323059913,1713621167463,-589.63,0.00019726,2]
[323059914,1713621167471,-1038.52,0.00019726,2]
[323059915,1713621167481,-500.0,0.00019726,2]
[323059916,1713621167490,-544.68,0.00019726,2]
[323059917,1713621167499,-745.95,0.00019726,2]
[323059918,1713621167508,-2146.81,0.00019726,2]
[323059919,1713621167518,-500.0,0.00019726,2]
[323059920,1713621167527,-12863.04,0.00019726,2]
[323059921,1713621167536,-872.9,0.00019726,2]
[323059922,1713621167545,-1580.69,0.00019726,2]
[323059923,1713621167555,-2481.94,0.00019726,2]
[323059924,1713621167565,-2416.85,0.00019726,2]
[323059925,1713621167575,-517.67,0.00019726,2]
[323059926,1713621167584,-716.61,0.00019726,2]
[323059927,1713621167593,-607.93,0.00019726,2]
[323059928,1713621167603,-500.0,0.00019726,2]
[323059929,1713621167612,-698.46,0.00019726,2]
[323059930,1713621167621,-1176.49,0.00019726,2]
[323059931,1713621167630,-1895.23,0.00019726,2]
[323059932,1713621167639,-2366.37,0.00019726,2]
[323059933,1713621167649,-834.84,0.00019726,2]
[323059934,1713621167658,-500.0,0.00019726,2]
[323059935,1713621167667,-1264.42,0.00019726,2]
[323059936,1713621167676,-1525.57,0.00019726,2]
[323059937,1713621167686,-1200.1,0.00019726,2]
[323059938,1713621167696,-500.0,0.00019726,2]
[323059939,1713621167706,-2596.31,0.00019726,2]
[323059940,1713621167715,-735.18,0.00019726,2]
[323059941,1713621167724,-3734.56,0.00019726,2]
[323059942,1713621167735,-1983.17,0.00019726,2]
[323059943,1713621167744,-685.33,0.00019726,2]
[323059944,1713621167754,-1892.67,0.00019726,2]
[323059945,1713621167764,-794.67,0.00019726,2]
[323059946,1713621167773,-2762.86,0.00019726,2]
[323059947,1713621167783,-698.53,0.00019726,2]
[323059948,1713621167793,-4314.41,0.00019726,2]
[323059949,1713621167803,-500.0,0.00019726,2]
[323059950,1713621167813,-928.74,0.00019726,2]
[323059951,1713621167823,-556.39,0.00019726,2]
[323059952,1713621167833,-4750.03,0.00019726,2]
[323059953,1713621167842,-704.33,0.00019726,2]
[323059954,1713621167852,-500.0,0.00019726,2]
[323059955,1713621167862,-6352.14,0.00019726,2]
[323059956,1713621167872,-554.92,0.00019726,2]
[323059957,1713621167881,-1612.53,0.00019726,2]
[323059958,1713621167891,-286.18344558,0.00019726,2]
[323059959,1713621167901,-1323.32,0.00019726,2]
[323059960,1713621167911,-1230.53,0.00019726,2]
[323059961,1713621167921,-3222.01,0.00019726,2]
[323059962,1713621167931,-5730.53,0.00019726,2]
[323059963,1713621167941,-1237.83,0.00019726,2]
[323059964,1713621167951,-801.29,0.00019726,2]
[323059965,1713621167961,-8896.9,0.00019726,2]
[323059966,1713621167970,-1250.13,0.00019726,2]
[323059967,1713621167980,-21516.91,0.00019726,2]
[323059968,1713621167989,-1238.37,0.00019726,2]
[323059969,1713621167998,-1269.11,0.00019726,2]
[323059970,1713621168008,-622.79,0.00019726,2]
[323059971,1713621168017,-1000.0,0.00019726,2]
[323059972,1713621168026,-285.0,0.0001973,2]
[323059973,1713621168037,-150.0,0.00019774,2]
[323059974,1713621168046,-150.0,0.00019783,2]
[323059975,1713621168057,-800.0,0.00019863,2]
[323059976,1713621168069,-150.0,0.00019884,2]
[323059977,1713621168078,-4551.27758249,0.000199,3]
[323059978,1713621168089,-467.53296441,0.000199,2]
[323059979,1713621168098,-467.53296433,0.000199,2]
[323059980,1713621168108,-467.53296433,0.000199,2]
[323059981,1713621168117,-467.53296433,0.000199,2]
[323059982,1713621168127,-467.53296433,0.000199,2]
[323059983,1713621168137,-467.53296433,0.000199,2]
[323059984,1713621168147,-467.53296433,0.000199,2]
[323059985,1713621168156,-467.53296433,0.000199,2]
[323059986,1713621168167,-467.53296433,0.000199,2]
[323059987,1713621168176,-467.53296433,0.000199,2]
[323059988,1713621168186,-467.53296433,0.000199,2]
[323059989,1713621168195,-467.53296433,0.000199,2]
[323059990,1713621168205,-467.53296433,0.000199,2]
[323059991,1713621168214,-467.53296433,0.000199,2]
[323059992,1713621168224,-467.53296433,0.000199,2]
[323059993,1713621168233,-467.53296433,0.000199,2]
[323059994,1713621168242,-467.53296433,0.000199,2]
[323059995,1713621168251,-467.53296433,0.000199,2]
[323059996,1713621168261,-467.53296433,0.000199,2]
[323059997,1713621168270,-467.53296433,0.000199,2]
[323059998,1713621168280,-467.53296433,0.000199,2]
[323059999,1713621168289,-467.53296433,0.000199,2]
[323060000,1713621168300,-467.53296433,0.000199,2]
[323060001,1713621168313,-467.53296433,0.000199,2]
[323060002,1713621168322,-467.53296433,0.000199,2]
[323060003,1713621168334,-467.53296433,0.000199,2]
[323060004,1713621168343,-467.53296433,0.000199,2]
[323060005,1713621168352,-467.53296433,0.000199,2]
[323060006,1713621168362,-467.53296433,0.000199,2]
[323060007,1713621168372,-467.53296433,0.000199,2]
[323060008,1713621168383,-467.53296433,0.000199,2]
[323060009,1713621168393,-467.53296433,0.000199,2]
[323060010,1713621168402,-467.53296433,0.000199,2]
[323060011,1713621168411,-467.53296433,0.000199,2]
[323060012,1713621168421,-467.53296433,0.000199,2]
[323060013,1713621168430,-467.53296433,0.000199,2]
[323060014,1713621168440,-467.53296433,0.000199,2]
[323060015,1713621168450,-467.53296433,0.000199,2]
[323060016,1713621168460,-467.53296433,0.000199,2]
[323060017,1713621168470,-467.53296433,0.000199,2]
[323060018,1713621168479,-467.53296433,0.000199,2]
[323060019,1713621168489,-467.53296433,0.000199,2]
[323060020,1713621168498,-467.53296433,0.000199,2]
[323060021,1713621168508,-467.53296433,0.000199,2]
[323060022,1713621168518,-467.53296433,0.000199,2]
[323060023,1713621168527,-467.53296433,0.000199,2]
[323060024,1713621168536,-467.53296433,0.000199,2]
[323060025,1713621168546,-467.53296433,0.000199,2]
[323060026,1713621168557,-467.53296433,0.000199,2]
[323060027,1713621168566,-467.53296433,0.000199,2]
[323060028,1713621168576,-467.53296433,0.000199,2]
[323060029,1713621168586,-467.53296433,0.000199,2]
[323060030,1713621168595,-467.53296433,0.000199,2]
[323060031,1713621168605,-467.53296433,0.000199,2]
[323060032,1713621168626,-467.53296433,0.000199,2]
[323060033,1713621168635,-467.53296433,0.000199,2]
[323060034,1713621168645,-467.53296433,0.000199,2]
[323060035,1713621168654,-467.53296433,0.000199,2]
[323060036,1713621168664,-467.53296433,0.000199,2]
[323060037,1713621168674,-467.53296433,0.000199,2]
[323060038,1713621168683,-467.53296433,0.000199,2]
[323060039,1713621168693,-467.53296433,0.000199,2]
[323060040,1713621168702,-467.53296433,0.000199,2]
[323060041,1713621168711,-467.53296433,0.000199,2]
[323060042,1713621168720,-467.53296433,0.000199,2]
[323060043,1713621168730,-467.53296433,0.000199,2]
[323060044,1713621168740,-467.53296433,0.000199,2]
[323060045,1713621168750,-467.53296433,0.000199,2]
[323060046,1713621168760,-467.53296433,0.000199,2]
[323060047,1713621168769,-467.53296433,0.000199,2]
[323060048,1713621168779,-467.53296433,0.000199,2]
[323060049,1713621168789,-467.53296433,0.000199,2]
[323060050,1713621168798,-467.53296433,0.000199,2]
[323060051,1713621168808,-467.53296433,0.000199,2]
[323060052,1713621168818,-467.53296433,0.000199,2]
[323060053,1713621168828,-467.53296433,0.000199,2]
[323060054,1713621168838,-467.53296433,0.000199,2]
[323060055,1713621168848,-467.53296433,0.000199,2]
[323060056,1713621168858,-467.53296433,0.000199,2]
[323060057,1713621168868,-467.53296433,0.000199,2]
[323060058,1713621168878,-467.53296433,0.000199,2]
[323060059,1713621168888,-467.53296433,0.000199,2]
[323060060,1713621168898,-467.53296433,0.000199,2]
[323060061,1713621168908,-467.53296433,0.000199,2]
[323060062,1713621168918,-467.53296433,0.000199,2]
[323060063,1713621168927,-467.53296433,0.000199,2]
[323060064,1713621168936,-467.53296433,0.000199,2]
[323060065,1713621168945,-467.53296433,0.000199,2]
[323060066,1713621168954,-467.53296433,0.000199,2]
[323060067,1713621168963,-467.53296433,0.000199,2]
[323060068,1713621168972,-152.0,0.00019958,10]
[323060069,1713621168981,-398.9809619,0.00019973,10]
[323060070,1713621168990,-2300.0,0.00019992,2]
[323060071,1713621169000,-155.13601819,0.00019998,2]
[323060072,1713621169009,-186.09319174,0.0002,2]
[323060073,1713621169018,-1260.19991151,0.0002,2]
[323060074,1713621169027,-8986.21885385,0.0002,2]
[323060075,1713621169037,-155.0,0.0002,2]
[323060076,1713621169046,-1108.66,0.0002,3]
[323060077,1713621169057,-1138.6,0.0002,5]
[323060078,1713621169066,-6219.74523732,0.0002,2]
[323060079,1713621169076,-9180.65986293,0.0002,2]
[323060080,1713621169085,-155.0,0.0002,2]
[323060081,1713621169095,-155.0,0.0002,2]
[323060082,1713621169104,-5000.0,0.0002,2]
[323060083,1713621169114,-500.0,0.0002,2]
[323060084,1713621169124,-188.0,0.0002,2]
[323060085,1713621169133,-641.33652336,0.0002,2]
[323060086,1713621169143,-859.45953861,0.0002,2]
[323060087,1713621169152,-500.0,0.0002,2]
[323060088,1713621169161,-150.0,0.0002,2]
[323060089,1713621169170,-7019.32777998,0.0002,2]
[323060090,1713621169180,-1765.81916156,0.0002,2]
[323060091,1713621169189,-982.77141677,0.0002,2]
[323060092,1713621169199,-155.0,0.0002,2]
[323060093,1713621169208,-965.0,0.0002,2]
[323060094,1713621169217,-965.0,0.0002,2]
[323060095,1713621169227,-200.0,0.0002,2]
[323060096,1713621169236,-176.0,0.0002,2]
[323060097,1713621169246,-155.0,0.0002,2]
[323060098,1713621169255,-155.0,0.0002,2]
[323060099,1713621169265,-2689.40875997,0.0002,7]
[323060100,1713621169274,-2800.0,0.0002,5]
[323060101,1713621169284,-26015.33794657,0.0002,2]
[323060102,1713621169293,-106643.37900954,0.0002,2]
[323060103,1713621169306,-188.0,0.0002,2]
[323060104,1713621169316,-150.0,0.0002,2]
[323060105,1713621169326,-1001.48146544,0.0002,2]
[323060106,1713621169335,-2482.05422055,0.0002,2]
[323060107,1713621169345,-33077.56273474,0.0002,2]
[323060108,1713621169354,-1039.36,0.0002,2]
[323060109,1713621169364,-4394.02354066,0.0002,2]
[323060110,1713621169374,-1000.0,0.0002,2]
[323060111,1713621169384,-30677.65302928,0.0002,2]
[323060112,1713621169395,-2600.36207708,0.0002,2]
[323060113,1713621169404,-188.0,0.0002,2]
[323060114,1713621169414,-14523.29101928,0.0002,2]
[323060115,1713621169423,-208238.77666008,0.0002,2]
[323060116,1713621169432,-200.0,0.0002,2]
[323060117,1713621169441,-1350.96,0.0002,3]
[323060118,1713621169450,-354.0,0.0002,2]
[323060119,1713621169459,-354.0,0.0002,2]
[323060120,1713621169469,-354.0,0.0002,2]
[323060121,1713621169479,-708.0,0.0002,2]
[323060122,1713621169489,-708.0,0.0002,2]
[323060123,1713621169498,-3950.0,0.0002,2]
[323060124,1713621169507,-2459.45667574,0.0002,2]
[323060125,1713621169517,-176.0,0.0002,2]
[323060126,1713621169527,-290.0481495,0.0002,2]
[323060127,1713621169537,-785.76620059,0.0002,4]
[323060128,1713621169547,-2550.79620652,0.0002,2]
[323060129,1713621169558,-150.0,0.0002,2]
[323060130,1713621169567,-2999.99,0.0002,2]
[323060131,1713621169577,-3000.0,0.0002,2]
[323060132,1713621169587,-3000.0,0.0002,2]
[323060133,1713621169596,-3000.0,0.0002,2]
[323060134,1713621169605,-3000.0,0.0002,2]
[323060135,1713621169615,-802.74,0.0002,2]
[323060136,1713621169624,-23357.0,0.0002,3]
[323060137,1713621169633,-221698.07911854,0.0002,2]
[323060138,1713621169643,-63614.69024772,0.0002,2]
[323060139,1713621169654,-155.10898839,0.0002,2]
[323060140,1713621169663,-36890.71530394,0.0002,2]
[323060141,1713621169673,-208219.45165183,0.0002,2]
[323060142,1713621169682,-145830.89417946,0.0002,2]
[323060143,1713621169693,-650.0,0.0002,15]
[323060144,1713621169702,-40000.0,0.0002,5]
[323060145,1713621169712,-3725.12411856,0.0002,2]
[323060146,1713621169721,-6653.0,0.0002,2]
[323060147,1713621169730,-4828.0,0.0002,2]
[323060148,1713621169740,-3544.0,0.0002,2]
[323060149,1713621169750,-70000.0,0.0002,4]
[323060150,1713621169759,-182.46172732,0.0002,4]
[323060151,1713621169769,-3067.70286643,0.0002,2]
[323060152,1713621169778,-1025.47,0.0002,2]
[323060153,1713621169788,-84412.4806663,0.0002,2]
[323060154,1713621169797,-2297.0,0.0002,5]
[323060155,1713621169808,-2000.0,0.0002,5]
[323060156,1713621169818,-155.0,0.0002,2]
[323060157,1713621169828,-10002.0,0.0002,2]
[323060158,1713621169838,-36995.66030796,0.0002,2]
[323060159,1713621169847,-1160.5668552,0.0002,2]
[323060160,1713621169861,-2046.0,0.0002,2]
[323060161,1713621169871,-390.27917739,0.0002,2]
[323060162,1713621169881,-234.16750643,0.0002,2]
[323060163,1713621169890,-156.11167095,0.0002,2]
[323060164,1713621169901,-2100.0,0.0002,2]
[323060165,1713621169910,-635.04,0.0002,2]
[323060166,1713621169919,-639.54,0.0002,2]
[323060167,1713621169929,-500.0,0.0002,2]
[323060168,1713621169938,-286.44115665,0.0002,2]
[323060169,1713621169947,-852.82,0.0002,2]
[323060170,1713621169957,-654.32,0.0002,2]
[323060171,1713621169966,-204.38441299,0.0002,2]
[323060172,1713621169975,-502.56,0.0002,2]
[323060173,1713621169985,-611.35,0.0002,2]
[323060174,1713621169994,-618.47381475,0.0002,2]
[323060175,1713621170004,-735.88,0.0002,2]
[323060176,1713621170014,-717.35,0.0002,2]
[323060177,1713621170024,-500.0,0.0002,2]
[323060178,1713621170033,-539.29,0.0002,2]
[323060179,1713621170043,-500.0,0.0002,2]
[323060180,1713621170053,-500.0,0.0002,2]
[323060181,1713621170062,-199.97659883,0.0002,2]
[323060182,1713621170072,-2400.0,0.0002,2]
[323060183,1713621170082,-569.73,0.0002,2]
[323060184,1713621170092,-827.03,0.0002,2]
[323060185,1713621170101,-500.0,0.0002,2]
[323060186,1713621170111,-637.21,0.0002,2]
[323060187,1713621170121,-627.0,0.0002,2]
[323060188,1713621170131,-579.7,0.0002,2]
[323060189,1713621170141,-969.36,0.0002,2]
[323060190,1713621170151,-781.94,0.0002,2]
[323060191,1713621170161,-667.13,0.0002,2]
[323060192,1713621170171,-500.0,0.0002,2]
[323060193,1713621170180,-500.0,0.0002,2]
[323060194,1713621170190,-770.44,0.0002,2]
[323060195,1713621170200,-1099.12,0.0002,2]
[323060196,1713621170210,-597.89,0.0002,2]
[323060197,1713621170221,-500.0,0.0002,2]
[323060198,1713621170231,-150.0,0.0002,2]
[323060199,1713621170241,-522.54,0.0002,2]
[323060200,1713621170252,-500.0,0.0002,2]
[323060201,1713621170263,-532.55,0.0002,2]
[323060202,1713621170273,-307.56,0.0002,2]
[323060203,1713621170283,-618.57,0.0002,2]
[323060204,1713621170294,-500.0,0.0002,2]
[323060205,1713621170307,-737.86,0.0002,2]
[323060206,1713621170317,-281.43284126,0.0002,2]
[323060207,1713621170327,-515.87,0.0002,2]
[323060208,1713621170337,-912.68,0.0002,2]
[323060209,1713621170347,-500.0,0.0002,2]
[323060210,1713621170357,-860.75,0.0002,2]
[323060211,1713621170367,-500.0,0.0002,2]
[323060212,1713621170378,-702.21,0.0002,2]
[323060213,1713621170389,-500.0,0.0002,2]
[323060214,1713621170399,-500.0,0.0002,2]
[323060215,1713621170409,-821.61,0.0002,2]
[323060216,1713621170420,-821.76,0.0002,2]
[323060217,1713621170430,-500.0,0.0002,2]
[323060218,1713621170440,-940.84,0.0002,2]
[323060219,1713621170450,-500.0,0.0002,2]
[323060220,1713621170459,-863.56,0.0002,2]
[323060221,1713621170469,-1083.21,0.0002,2]
[323060222,1713621170479,-1649.11,0.0002,2]
[323060223,1713621170489,-500.0,0.0002,2]
[323060224,1713621170500,-449.03937818,0.0002,2]
[323060225,1713621170510,-933.2,0.0002,2]
[323060226,1713621170520,-1738.53,0.0002,2]
[323060227,1713621170529,-500.0,0.0002,2]
[323060228,1713621170539,-500.0,0.0002,2]
[323060229,1713621170549,-641.19,0.0002,2]
[323060230,1713621170559,-546.2,0.0002,2]
[323060231,1713621170568,-669.09,0.0002,2]
[323060232,1713621170578,-538.48,0.0002,2]
[323060233,1713621170588,-1472.9,0.0002,2]
[323060234,1713621170599,-526.85,0.0002,2]
[323060235,1713621170609,-633.05,0.0002,2]
[323060236,1713621170619,-679.04,0.0002,2]
[323060237,1713621170628,-889.7,0.0002,2]
[323060238,1713621170638,-614.66,0.0002,2]
[323060239,1713621170649,-749.34,0.0002,2]
[323060240,1713621170659,-669.86,0.0002,2]
[323060241,1713621170669,-2124.92,0.0002,2]
[323060242,1713621170679,-627.14,0.0002,2]
[323060243,1713621170689,-887.51,0.0002,2]
[323060244,1713621170699,-595.2,0.0002,2]
[323060245,1713621170709,-712.4,0.0002,2]
[323060246,1713621170719,-583.86,0.0002,2]
[323060247,1713621170729,-714.19,0.0002,2]
[323060248,1713621170739,-654.49,0.0002,2]
[323060249,1713621170749,-500.0,0.0002,2]
[323060250,1713621170760,-543.54,0.0002,2]
[323060251,1713621170770,-856.07,0.0002,2]
[323060252,1713621170779,-519.9,0.0002,2]
[323060253,1713621170789,-1382.29,0.0002,2]
[323060254,1713621170799,-704.01,0.0002,2]
[323060255,1713621170810,-547.36656188,0.0002,2]
[323060256,1713621170820,-778.05,0.0002,2]
[323060257,1713621170831,-943.86,0.0002,2]
[323060258,1713621170842,-533.87,0.0002,2]
[323060259,1713621170852,-1206.79,0.0002,2]
[323060260,1713621170863,-864.0,0.0002,2]
[323060261,1713621170874,-871.35,0.0002,2]
[323060262,1713621170884,-581.68,0.0002,2]
[323060263,1713621170894,-998.69,0.0002,2]
[323060264,1713621170904,-580.51,0.0002,2]
[323060265,1713621170915,-564.88,0.0002,2]
[323060266,1713621170926,-777.99,0.0002,2]
[323060267,1713621170936,-566.7,0.0002,2]
[323060268,1713621170946,-922.4,0.0002,2]
[323060269,1713621170957,-772.56,0.0002,2]
[323060270,1713621170967,-741.19,0.0002,2]
[323060271,1713621170977,-510.23,0.0002,2]
[323060272,1713621170988,-500.0,0.0002,2]
[323060273,1713621170998,-1301.99,0.0002,2]
[323060274,1713621171009,-1011.91,0.0002,2]
[323060275,1713621171018,-729.34,0.0002,2]
[323060276,1713621171028,-598.99,0.0002,2]
[323060277,1713621171038,-590.27,0.0002,2]
[323060278,1713621171048,-500.0,0.0002,2]
[323060279,1713621171058,-983.5,0.0002,2]
[323060280,1713621171069,-500.0,0.0002,2]
[323060281,1713621171079,-500.0,0.0002,2]